[Event "World Junior Chess Championship U20 2022"]
[White "Iniyan, P"]
[Black "Carlo, Emanuele"]
[WhiteFideId "25002767"]
[BlackFideId "2825380"]
[WhiteElo "2541"]
[BlackElo "2306"]
[Result "1-0"]
[Round "01"]
[TimeControl "5400+30"]
[Date "2022.10.12"]
[WhiteClock "0:30:39"]
[BlackClock "0:02:12"]

1. e4 {[%clk 1:30:34]}  e5 {[%clk 1:30:54]} 2. Nf3 {[%clk 1:30:55]}  Nc6 {[%clk 1:31:18]} 3. Bc4 {[%clk 1:30:43]}  Bc5 {[%clk 1:30:22]} 4. d3 {[%clk 1:30:41]}  Nf6 {[%clk 1:30:02]} 5. c3 {[%clk 1:30:05]}  O-O {[%clk 1:24:46]} 6. O-O {[%clk 1:30:17]}  d6 {[%clk 1:24:24]} 7. Re1 {[%clk 1:24:23]}  h6 {[%clk 1:24:17]} 8. h3 {[%clk 1:21:13]}  a6 {[%clk 1:20:01]} 9. Bb3 {[%clk 1:18:03]}  Ba7 {[%clk 1:17:52]} 10. Nbd2 {[%clk 1:15:38]}  Re8 {[%clk 1:17:02]} 11. Nf1 {[%clk 1:15:04]}  Be6 {[%clk 1:17:09]} 12. Bc2 {[%clk 1:14:49]}  d5 {[%clk 1:17:00]} 13. exd5 {[%clk 1:11:46]}  Bxd5 {[%clk 1:17:21]} 14. Ng3 {[%clk 1:06:54]}  Qd7 {[%clk 1:13:43]} 15. Be3 {[%clk 1:06:09]}  Bxe3 {[%clk 1:08:55]} 16. Rxe3 {[%clk 1:06:28]}  g6 {[%clk 0:50:15]} 17. a4 {[%clk 0:56:14]}  a5 {[%clk 0:46:33]} 18. Qe2 {[%clk 0:56:35]}  Qd6 {[%clk 0:42:48]} 19. Re1 {[%clk 0:56:55]}  Rad8 {[%clk 0:36:24]} 20. Kh2 {[%clk 0:51:40]}  Kg7 {[%clk 0:33:18]} 21. Nxe5 {[%clk 0:49:59]}  Nxe5 {[%clk 0:29:52]} 22. Rxe5 {[%clk 0:50:18]}  Rxe5 {[%clk 0:27:34]} 23. Qxe5 {[%clk 0:50:42]}  Qb6 {[%clk 0:28:03]} 24. Rb1 {[%clk 0:30:54]}  Qxf2 {[%clk 0:25:08]} 25. Qe2 {[%clk 0:31:16]}  Qf4 {[%clk 0:23:49]} 26. Rf1 {[%clk 0:29:48]}  Qh4 {[%clk 0:19:03]} 27. Qe1 {[%clk 0:24:56]}  Qg5 {[%clk 0:19:08]} 28. Qf2 {[%clk 0:21:20]}  Re8 {[%clk 0:16:19]} 29. c4 {[%clk 0:17:32]}  Be6 {[%clk 0:13:25]} 30. Qd4 {[%clk 0:15:36]}  c5 {[%clk 0:10:00]} 31. Qc3 {[%clk 0:15:57]}  Bf5 {[%clk 0:09:59]} 32. Rf3 {[%clk 0:09:40]}  Re3 {[%clk 0:07:54]} 33. Rxe3 {[%clk 0:03:19]}  Qxe3 {[%clk 0:08:23]} 34. d4 {[%clk 0:03:40]}  cxd4 {[%clk 0:02:38]} 35. Qxe3 {[%clk 0:04:04]}  dxe3 {[%clk 0:03:04]} 36. Bxf5 {[%clk 0:04:26]}  e2 {[%clk 0:03:33]} 37. Nxe2 {[%clk 0:04:46]}  gxf5 {[%clk 0:04:01]} 38. Nd4 {[%clk 0:04:25]}  f4 {[%clk 0:03:45]} 39. Nb3 {[%clk 0:03:42]}  b6 {[%clk 0:01:45]} 40. c5 {[%clk 0:04:02]}  Nd5 {[%clk 0:01:31]} 41. Kg1 {[%clk 0:02:40]}  Kf6 {[%clk 0:26:22]} 42. Kf2 {[%clk 0:32:54]}  Ke5 {[%clk 0:22:38]} 43. Kf3 {[%clk 0:33:12]}  bxc5 {[%clk 0:19:06]} 44. Nxa5 {[%clk 0:33:32]}  Kd4 {[%clk 0:17:31]} 45. Nc6+ {[%clk 0:31:14]}  Kc4 {[%clk 0:15:44]} 46. Ne5+ {[%clk 0:31:37]}  Kb3 {[%clk 0:14:58]} 47. Nxf7 {[%clk 0:30:17]}  Kxb2 {[%clk 0:13:41]} 48. Nxh6 {[%clk 0:30:23]}  c4 {[%clk 0:13:43]} 49. Nf5 {[%clk 0:30:47]}  Kc3 {[%clk 0:10:11]} 50. Ke4 {[%clk 0:29:13]}  Ne3 {[%clk 0:04:04]} 51. a5 {[%clk 0:28:51]}  Nxf5 {[%clk 0:02:17]} 52. Kxf5 {[%clk 0:29:14]}  f3 {[%clk 0:01:56]} 53. gxf3 {[%clk 0:29:39]}  Kd2 {[%clk 0:01:40]} 54. a6 {[%clk 0:29:51]}  c3 {[%clk 0:02:09]} 55. a7 {[%clk 0:30:11]}  c2 {[%clk 0:02:36]} 56. a8=Q {[%clk 0:30:33]}  c1=Q {[%clk 0:02:59]} 57. Qe4 {[%clk 0:28:34]}  Qc8+ {[%clk 0:02:27]} 58. Qe6 {[%clk 0:28:57]}  Qc5+ {[%clk 0:02:40]} 59. Kf4 {[%clk 0:29:10]}  Qd4+ {[%clk 0:02:42]} 60. Qe4 {[%clk 0:29:24]}  Qd8 {[%clk 0:01:50]} 61. Kg3 {[%clk 0:29:11]}  Qb6 {[%clk 0:01:51]} 62. Kg2 {[%clk 0:29:07]}  Qf6 {[%clk 0:01:29]} 63. h4 {[%clk 0:29:08]}  Qf7 {[%clk 0:01:19]} 64. Qe5 {[%clk 0:29:16]}  Kd3 {[%clk 0:01:23]} 65. h5 {[%clk 0:29:34]}  Qg8+ {[%clk 0:01:37]} 66. Kh3 {[%clk 0:29:41]}  Qc8+ {[%clk 0:01:51]} 67. Kh2 {[%clk 0:29:57]}  Qc2+ {[%clk 0:01:57]} 68. Kg3 {[%clk 0:30:20]}  Qc8 {[%clk 0:01:28]} 69. h6 {[%clk 0:29:51]}  Qg8+ {[%clk 0:01:49]} 70. Qg7 {[%clk 0:30:14]}  Qb8+ {[%clk 0:02:12]} 71. f4 {[%clk 0:30:39]} 1-0


[Site "http://www.chessbomb.com"]

[Event "World Junior Chess Championship U20 2022"]
[White "Martins, Bruno Andre Leite"]
[Black "Sonis, Francesco"]
[WhiteFideId "1942255"]
[BlackFideId "895733"]
[WhiteElo "2306"]
[BlackElo "2531"]
[Result "0-1"]
[Round "01"]
[TimeControl "5400+30"]
[Date "2022.10.12"]
[WhiteClock "0:00:35"]
[BlackClock "0:14:59"]

1. e4 {[%clk 1:30:57]}  c5 {[%clk 1:30:52]} 2. Nf3 {[%clk 1:31:18]}  d6 {[%clk 1:31:16]} 3. d4 {[%clk 1:31:33]}  cxd4 {[%clk 1:31:37]} 4. Nxd4 {[%clk 1:31:55]}  Nf6 {[%clk 1:31:58]} 5. Nc3 {[%clk 1:32:18]}  a6 {[%clk 1:32:24]} 6. Rg1 {[%clk 1:31:38]}  h5 {[%clk 1:30:23]} 7. h3 {[%clk 1:29:10]}  e5 {[%clk 1:27:34]} 8. Nb3 {[%clk 1:29:14]}  h4 {[%clk 1:25:13]} 9. Be3 {[%clk 1:24:10]}  Be6 {[%clk 1:23:29]} 10. Qd2 {[%clk 1:23:01]}  Nbd7 {[%clk 1:22:13]} 11. O-O-O {[%clk 1:22:54]}  b5 {[%clk 1:22:01]} 12. f4 {[%clk 1:19:04]}  Rc8 {[%clk 1:10:50]} 13. Kb1 {[%clk 1:12:44]}  Qc7 {[%clk 0:53:45]} 14. Nd5 {[%clk 0:48:08]}  Qc6 {[%clk 0:46:27]} 15. Na5 {[%clk 0:34:01]}  Qa8 {[%clk 0:42:35]} 16. c4 {[%clk 0:21:45]}  Nxe4 {[%clk 0:39:55]} 17. Qb4 {[%clk 0:21:35]}  Ng3 {[%clk 0:26:42]} 18. Bd3 {[%clk 0:18:45]}  e4 {[%clk 0:25:01]} 19. Bc2 {[%clk 0:16:34]}  Rh5 {[%clk 0:22:30]} 20. Qd2 {[%clk 0:03:53]}  bxc4 {[%clk 0:20:56]} 21. Nb6 {[%clk 0:03:26]}  c3 {[%clk 0:17:21]} 22. Qf2 {[%clk 0:01:08]}  Bxa2+ {[%clk 0:13:46]} 23. Kxa2 {[%clk 0:01:29]}  Rxa5+ {[%clk 0:14:11]} 24. Ba4 {[%clk 0:00:39]}  Qc6 {[%clk 0:14:35]} 25. Kb1 {[%clk 0:00:35]}  Rxa4 {[%clk 0:14:59]} 0-1


[Site "http://www.chessbomb.com"]

[Event "World Junior Chess Championship U20 2022"]
[White "Budisavljevic, Luka"]
[Black "Guz, Ari"]
[WhiteFideId "960047"]
[BlackFideId "2825759"]
[WhiteElo "2524"]
[BlackElo "2305"]
[Result "1-0"]
[Round "01"]
[TimeControl "5400+30"]
[Date "2022.10.12"]
[WhiteClock "0:24:02"]
[BlackClock "0:14:58"]

1. d4 {[%clk 1:30:56]}  Nf6 {[%clk 1:30:19]} 2. c4 {[%clk 1:31:08]}  e6 {[%clk 1:29:55]} 3. Nf3 {[%clk 1:31:32]}  d5 {[%clk 1:29:11]} 4. Nc3 {[%clk 1:31:55]}  c5 {[%clk 1:29:18]} 5. e3 {[%clk 1:31:52]}  a6 {[%clk 1:28:38]} 6. cxd5 {[%clk 1:31:54]}  exd5 {[%clk 1:25:35]} 7. Be2 {[%clk 1:32:09]}  Be7 {[%clk 1:23:34]} 8. O-O {[%clk 1:32:13]}  O-O {[%clk 1:23:04]} 9. b3 {[%clk 1:28:57]}  Nc6 {[%clk 1:20:28]} 10. Bb2 {[%clk 1:29:10]}  Be6 {[%clk 1:12:32]} 11. Rc1 {[%clk 1:28:35]}  cxd4 {[%clk 1:03:58]} 12. Nxd4 {[%clk 1:28:57]}  Nxd4 {[%clk 1:03:31]} 13. Qxd4 {[%clk 1:29:19]}  Rc8 {[%clk 1:03:28]} 14. Bf3 {[%clk 1:25:43]}  Qa5 {[%clk 1:00:33]} 15. a3 {[%clk 1:20:29]}  Bxa3 {[%clk 0:50:07]} 16. Ra1 {[%clk 1:19:39]}  Bxb2 {[%clk 0:50:30]} 17. Rxa5 {[%clk 1:20:00]}  Bxc3 {[%clk 0:50:55]} 18. Qa4 {[%clk 1:19:38]}  Bxa5 {[%clk 0:51:12]} 19. Qxa5 {[%clk 1:20:02]}  Rfd8 {[%clk 0:49:06]} 20. Qb6 {[%clk 1:11:41]}  Rd7 {[%clk 0:45:10]} 21. h3 {[%clk 1:09:14]}  h6 {[%clk 0:44:52]} 22. Rd1 {[%clk 1:02:42]}  Rc6 {[%clk 0:41:44]} 23. Qd4 {[%clk 1:01:50]}  Rdc7 {[%clk 0:41:11]} 24. Qe5 {[%clk 0:58:24]}  Nd7 {[%clk 0:33:56]} 25. Qf4 {[%clk 0:56:59]}  Rc1 {[%clk 0:30:57]} 26. Kh2 {[%clk 0:56:21]}  Nf6 {[%clk 0:22:40]} 27. e4 {[%clk 0:54:59]}  Rxd1 {[%clk 0:19:30]} 28. Qxc7 {[%clk 0:55:25]}  Rd2 {[%clk 0:19:11]} 29. exd5 {[%clk 0:34:31]}  Bxd5 {[%clk 0:18:50]} 30. Qc8+ {[%clk 0:28:11]}  Kh7 {[%clk 0:19:10]} 31. Bxd5 {[%clk 0:25:31]}  Rxd5 {[%clk 0:16:20]} 32. Qxb7 {[%clk 0:25:58]}  Rf5 {[%clk 0:14:58]} 33. Kg1 {[%clk 0:24:02]} 1-0


[Site "http://www.chessbomb.com"]

[Event "World Junior Chess Championship U20 2022"]
[White "Gaal, Zsoka"]
[Black "Batsuren, Dambasuren"]
[WhiteFideId "777765"]
[BlackFideId "4902920"]
[WhiteElo "2298"]
[BlackElo "2522"]
[Result "0-1"]
[Round "01"]
[TimeControl "5400+30"]
[Date "2022.10.12"]
[WhiteClock "0:00:38"]
[BlackClock "0:02:40"]

1. Nf3 {[%clk 1:30:48]}  Nf6 {[%clk 1:30:47]} 2. g3 {[%clk 1:31:06]}  b5 {[%clk 1:30:56]} 3. Bg2 {[%clk 1:31:27]}  Bb7 {[%clk 1:31:12]} 4. d4 {[%clk 1:31:43]}  e6 {[%clk 1:24:38]} 5. O-O {[%clk 1:32:01]}  Be7 {[%clk 1:23:30]} 6. Bg5 {[%clk 1:31:27]}  h6 {[%clk 1:17:13]} 7. Bxf6 {[%clk 1:31:13]}  Bxf6 {[%clk 1:17:34]} 8. Qd3 {[%clk 1:28:51]}  a6 {[%clk 1:16:32]} 9. e4 {[%clk 1:20:22]}  d6 {[%clk 1:12:27]} 10. a4 {[%clk 1:17:27]}  b4 {[%clk 1:06:35]} 11. c3 {[%clk 1:02:55]}  bxc3 {[%clk 1:01:22]} 12. Nxc3 {[%clk 1:03:09]}  Nd7 {[%clk 0:56:26]} 13. Rfd1 {[%clk 0:59:13]}  O-O {[%clk 0:52:14]} 14. Rac1 {[%clk 0:53:58]}  Rb8 {[%clk 0:44:33]} 15. Qe2 {[%clk 0:51:06]}  g6 {[%clk 0:41:26]} 16. b4 {[%clk 0:46:07]}  Qe7 {[%clk 0:41:08]} 17. a5 {[%clk 0:41:04]}  Rfc8 {[%clk 0:37:56]} 18. Na4 {[%clk 0:37:21]}  Bg7 {[%clk 0:35:28]} 19. Rd2 {[%clk 0:28:26]}  c5 {[%clk 0:24:56]} 20. dxc5 {[%clk 0:27:19]}  dxc5 {[%clk 0:23:18]} 21. Rcd1 {[%clk 0:17:04]}  Bc6 {[%clk 0:20:52]} 22. Nxc5 {[%clk 0:16:13]}  Nxc5 {[%clk 0:20:42]} 23. bxc5 {[%clk 0:16:35]}  Ba4 {[%clk 0:19:41]} 24. Rc1 {[%clk 0:10:28]}  Rxc5 {[%clk 0:19:52]} 25. Rxc5 {[%clk 0:10:17]}  Rb1+ {[%clk 0:14:54]} 26. Bf1 {[%clk 0:10:04]}  Qxc5 {[%clk 0:15:18]} 27. Rd8+ {[%clk 0:09:40]}  Kh7 {[%clk 0:10:32]} 28. Nd2 {[%clk 0:09:42]}  Rb2 {[%clk 0:06:48]} 29. Qxa6 {[%clk 0:06:53]}  Bc3 {[%clk 0:05:15]} 30. Qc4 {[%clk 0:01:12]}  Qxa5 {[%clk 0:05:23]} 31. Rc8 {[%clk 0:01:34]}  Bg7 {[%clk 0:04:08]} 32. Nf3 {[%clk 0:01:14]}  Rb1 {[%clk 0:02:30]} 33. Rc5 {[%clk 0:00:44]}  Qb6 {[%clk 0:02:16]} 34. Nd2 {[%clk 0:00:46]}  Rb2 {[%clk 0:02:29]} 35. Qc1 {[%clk 0:00:38]}  Rxd2 {[%clk 0:02:40]} 0-1


[Site "http://www.chessbomb.com"]

[Event "World Junior Chess Championship U20 2022"]
[White "Seo, Jung Min"]
[Black "Wartiovaara, Oliver"]
[WhiteFideId "1734687"]
[BlackFideId "513024"]
[WhiteElo "2520"]
[BlackElo "2297"]
[Result "1-0"]
[Round "01"]
[TimeControl "5400+30"]
[Date "2022.10.12"]
[WhiteClock "0:15:15"]
[BlackClock "0:55:12"]

1. Nf3 {[%clk 1:30:48]}  Nf6 {[%clk 1:28:49]} 2. d4 {[%clk 1:30:59]}  e6 {[%clk 1:28:56]} 3. c4 {[%clk 1:31:20]}  d5 {[%clk 1:29:20]} 4. Nc3 {[%clk 1:31:20]}  Be7 {[%clk 1:29:43]} 5. g3 {[%clk 1:30:08]}  O-O {[%clk 1:29:33]} 6. Bg2 {[%clk 1:30:37]}  Nc6 {[%clk 1:29:46]} 7. Ne5 {[%clk 1:21:46]}  a5 {[%clk 1:30:06]} 8. cxd5 {[%clk 1:18:53]}  Nxe5 {[%clk 1:28:23]} 9. dxe5 {[%clk 1:19:17]}  Nxd5 {[%clk 1:28:46]} 10. Nxd5 {[%clk 1:19:38]}  exd5 {[%clk 1:29:07]} 11. O-O {[%clk 1:18:03]}  c6 {[%clk 1:28:45]} 12. Qc2 {[%clk 1:17:12]}  f5 {[%clk 1:23:09]} 13. exf6 {[%clk 1:14:31]}  Bxf6 {[%clk 1:22:12]} 14. e4 {[%clk 1:13:47]}  dxe4 {[%clk 1:18:07]} 15. Bxe4 {[%clk 1:14:01]}  g6 {[%clk 1:15:24]} 16. Bh6 {[%clk 1:06:51]}  Bg7 {[%clk 1:13:28]} 17. Bxg7 {[%clk 0:44:42]}  Kxg7 {[%clk 1:13:49]} 18. Bg2 {[%clk 0:44:47]}  Qf6 {[%clk 1:12:29]} 19. Rfe1 {[%clk 0:42:51]}  Be6 {[%clk 1:09:02]} 20. Re3 {[%clk 0:39:50]}  Rad8 {[%clk 1:04:04]} 21. Rae1 {[%clk 0:38:39]}  Bd5 {[%clk 1:03:27]} 22. Bxd5 {[%clk 0:37:07]}  Rxd5 {[%clk 1:03:31]} 23. Re6 {[%clk 0:36:26]}  Qf3 {[%clk 1:01:40]} 24. R6e3 {[%clk 0:36:26]}  Qf6 {[%clk 1:00:45]} 25. Re7+ {[%clk 0:32:23]}  Rf7 {[%clk 1:00:17]} 26. Rxf7+ {[%clk 0:28:59]}  Qxf7 {[%clk 0:59:22]} 27. Qc3+ {[%clk 0:29:22]}  Kg8 {[%clk 0:59:06]} 28. a3 {[%clk 0:29:06]}  h5 {[%clk 0:55:35]} 29. h4 {[%clk 0:29:14]}  Kh7 {[%clk 0:54:46]} 30. Kg2 {[%clk 0:28:21]}  Rf5 {[%clk 0:52:56]} 31. Qd2 {[%clk 0:26:22]}  b6 {[%clk 0:51:51]} 32. Kg1 {[%clk 0:25:55]}  Rd5 {[%clk 0:50:35]} 33. Qe3 {[%clk 0:23:35]}  Rb5 {[%clk 0:41:05]} 34. Qd4 {[%clk 0:22:51]}  Rd5 {[%clk 0:31:21]} 35. Qxb6 {[%clk 0:23:04]}  Qd7 {[%clk 0:31:39]} 36. Qb3 {[%clk 0:18:53]}  Rd3 {[%clk 0:31:29]} 37. Qa4 {[%clk 0:17:42]}  Qd4 {[%clk 0:31:10]} 38. Re7+ {[%clk 0:14:48]}  Kh6 {[%clk 0:31:36]} 39. Qxd4 {[%clk 0:15:12]}  Rxd4 {[%clk 0:32:01]} 40. Re2 {[%clk 0:13:41]}  c5 {[%clk 0:28:46]} 41. Kg2 {[%clk 0:08:46]}  Kg7 {[%clk 0:29:09]} 42. Re5 {[%clk 0:06:57]}  Rc4 {[%clk 0:29:25]} 43. Kf3 {[%clk 0:20:45]}  Kf6 {[%clk 0:59:43]} 44. Re2 {[%clk 0:19:31]}  Rd4 {[%clk 0:59:18]} 45. Rc2 {[%clk 0:15:54]}  c4 {[%clk 0:59:26]} 46. Ke2 {[%clk 0:15:33]}  Ke5 {[%clk 0:55:12]} 47. f3 {[%clk 0:15:15]} 1-0


[Site "http://www.chessbomb.com"]

[Event "World Junior Chess Championship U20 2022"]
[White "Zemach, Nadav"]
[Black "Davtyan, Artur"]
[WhiteFideId "2820927"]
[BlackFideId "13308327"]
[WhiteElo "2293"]
[BlackElo "2517"]
[Result "0-1"]
[Round "01"]
[TimeControl "5400+30"]
[Date "2022.10.12"]
[WhiteClock "0:29:55"]
[BlackClock "0:48:51"]

1. d4 {[%clk 1:30:57]}  d5 {[%clk 1:29:33]} 2. c4 {[%clk 1:31:21]}  e6 {[%clk 1:29:58]} 3. Nf3 {[%clk 1:31:47]}  c6 {[%clk 1:30:23]} 4. Qc2 {[%clk 1:31:08]}  Nf6 {[%clk 1:29:50]} 5. g3 {[%clk 1:31:31]}  dxc4 {[%clk 1:29:56]} 6. Qxc4 {[%clk 1:31:01]}  b5 {[%clk 1:30:07]} 7. Qc2 {[%clk 1:28:57]}  Bb7 {[%clk 1:29:28]} 8. Bg2 {[%clk 1:27:50]}  Nbd7 {[%clk 1:28:36]} 9. O-O {[%clk 1:22:00]}  c5 {[%clk 1:26:46]} 10. a4 {[%clk 1:12:38]}  b4 {[%clk 1:12:05]} 11. Nbd2 {[%clk 1:05:15]}  Rc8 {[%clk 1:11:17]} 12. dxc5 {[%clk 1:00:52]}  Nxc5 {[%clk 0:52:02]} 13. Rd1 {[%clk 0:51:00]}  Bd5 {[%clk 0:51:10]} 14. Qb1 {[%clk 0:36:50]}  Be4 {[%clk 0:49:58]} 15. Qa2 {[%clk 0:35:01]}  b3 {[%clk 0:49:03]} 16. Qa3 {[%clk 0:34:32]}  Bc2 {[%clk 0:49:20]} 17. Ne5 {[%clk 0:29:55]}  Ncd7 {[%clk 0:48:51]} 0-1


[Site "http://www.chessbomb.com"]

[Event "World Junior Chess Championship U20 2022"]
[White "Dauw, Sterre"]
[Black "Kacharava, Nikolozi"]
[WhiteFideId "248886"]
[BlackFideId "13611860"]
[WhiteElo "2287"]
[BlackElo "2512"]
[Result "0-1"]
[Round "01"]
[TimeControl "5400+30"]
[Date "2022.10.12"]
[WhiteClock "0:56:30"]
[BlackClock "0:30:13"]

1. d4 {[%clk 1:30:57]}  d5 {[%clk 1:29:46]} 2. c4 {[%clk 1:31:22]}  e6 {[%clk 1:28:59]} 3. Nf3 {[%clk 1:31:06]}  Nf6 {[%clk 1:29:00]} 4. Nc3 {[%clk 1:31:17]}  c6 {[%clk 1:28:55]} 5. g3 {[%clk 1:28:22]}  dxc4 {[%clk 1:28:19]} 6. Bg2 {[%clk 1:27:45]}  b5 {[%clk 1:27:46]} 7. O-O {[%clk 1:27:13]}  Bb7 {[%clk 1:26:41]} 8. Ne5 {[%clk 1:24:10]}  a6 {[%clk 1:26:01]} 9. a4 {[%clk 1:23:20]}  Be7 {[%clk 1:24:44]} 10. axb5 {[%clk 1:22:58]}  axb5 {[%clk 1:24:49]} 11. Rxa8 {[%clk 1:23:21]}  Bxa8 {[%clk 1:25:14]} 12. Nxb5 {[%clk 1:23:44]}  cxb5 {[%clk 1:25:12]} 13. Bxa8 {[%clk 1:24:08]}  O-O {[%clk 1:23:36]} 14. Bg2 {[%clk 1:18:01]}  Bd6 {[%clk 1:22:31]} 15. Bf4 {[%clk 1:16:31]}  Nd5 {[%clk 1:16:58]} 16. Bd2 {[%clk 1:14:15]}  Bxe5 {[%clk 1:06:01]} 17. dxe5 {[%clk 1:14:38]}  Nc6 {[%clk 1:06:07]} 18. e4 {[%clk 1:14:39]}  Ndb4 {[%clk 1:01:18]} 19. h4 {[%clk 1:04:51]}  Nd3 {[%clk 0:57:59]} 20. Bg5 {[%clk 1:04:27]}  Qd4 {[%clk 0:53:53]} 21. b3 {[%clk 1:02:20]}  Ra8 {[%clk 0:46:28]} 22. Be3 {[%clk 0:59:55]}  Qb2 {[%clk 0:42:25]} 23. bxc4 {[%clk 1:00:05]}  bxc4 {[%clk 0:42:47]} 24. h5 {[%clk 0:57:39]}  h6 {[%clk 0:37:40]} 25. g4 {[%clk 0:56:00]}  Ncxe5 {[%clk 0:34:43]} 26. g5 {[%clk 0:55:49]}  c3 {[%clk 0:32:38]} 27. Bc1 {[%clk 0:55:54]}  Qxc1 {[%clk 0:30:12]} 28. Qxc1 {[%clk 0:56:18]}  Nxc1 {[%clk 0:30:37]} 29. Rxc1 {[%clk 0:56:43]}  Rc8 {[%clk 0:30:20]} 30. Bf1 {[%clk 0:56:30]}  hxg5 {[%clk 0:30:13]} 0-1


[Site "http://www.chessbomb.com"]

[Event "World Junior Chess Championship U20 2022"]
[White "Petkov, Momchil"]
[Black "Vagman, Roy"]
[WhiteFideId "2921642"]
[BlackFideId "2828995"]
[WhiteElo "2511"]
[BlackElo "2274"]
[Result "1/2-1/2"]
[Round "01"]
[TimeControl "5400+30"]
[Date "2022.10.12"]
[WhiteClock "0:00:58"]
[BlackClock "0:09:04"]

1. d4 {[%clk 1:30:47]}  d5 {[%clk 1:30:43]} 2. c4 {[%clk 1:31:03]}  e6 {[%clk 1:30:57]} 3. Nf3 {[%clk 1:31:18]}  Nf6 {[%clk 1:31:08]} 4. g3 {[%clk 1:31:32]}  dxc4 {[%clk 1:30:51]} 5. Bg2 {[%clk 1:31:43]}  a6 {[%clk 1:30:57]} 6. O-O {[%clk 1:30:25]}  Nc6 {[%clk 1:30:51]} 7. a4 {[%clk 1:29:21]}  Rb8 {[%clk 1:24:43]} 8. a5 {[%clk 1:29:37]}  b5 {[%clk 1:20:49]} 9. axb6 {[%clk 1:29:17]}  cxb6 {[%clk 1:21:10]} 10. Bf4 {[%clk 1:29:08]}  Bd6 {[%clk 1:21:07]} 11. Ne5 {[%clk 1:29:08]}  Ne7 {[%clk 1:19:56]} 12. Bc6+ {[%clk 1:27:03]}  Kf8 {[%clk 1:19:03]} 13. Bg2 {[%clk 1:26:22]}  h6 {[%clk 1:06:52]} 14. e4 {[%clk 1:07:27]}  b5 {[%clk 0:52:18]} 15. Qe2 {[%clk 1:02:18]}  Bc7 {[%clk 0:50:22]} 16. Rd1 {[%clk 0:59:30]}  Nd7 {[%clk 0:44:29]} 17. Nxd7+ {[%clk 0:34:11]}  Qxd7 {[%clk 0:44:33]} 18. Bxc7 {[%clk 0:32:30]}  Qxc7 {[%clk 0:44:54]} 19. d5 {[%clk 0:32:55]}  Rb6 {[%clk 0:40:54]} 20. Qd2 {[%clk 0:29:08]}  exd5 {[%clk 0:39:10]} 21. exd5 {[%clk 0:28:37]}  Qd6 {[%clk 0:34:35]} 22. Nc3 {[%clk 0:27:10]}  Bf5 {[%clk 0:32:11]} 23. Re1 {[%clk 0:21:27]}  Ng8 {[%clk 0:25:11]} 24. Qd4 {[%clk 0:15:43]}  Nf6 {[%clk 0:24:53]} 25. Re5 {[%clk 0:16:08]}  Bg6 {[%clk 0:21:07]} 26. Rae1 {[%clk 0:13:36]}  Rb7 {[%clk 0:18:08]} 27. Ne2 {[%clk 0:06:23]}  Kg8 {[%clk 0:07:31]} 28. Nf4 {[%clk 0:06:47]}  Kh7 {[%clk 0:07:26]} 29. Nxg6 {[%clk 0:06:55]}  fxg6 {[%clk 0:07:31]} 30. Re6 {[%clk 0:07:15]}  Qd8 {[%clk 0:07:20]} 31. Rxa6 {[%clk 0:05:54]}  Re8 {[%clk 0:06:28]} 32. Rxe8 {[%clk 0:03:51]}  Qxe8 {[%clk 0:06:39]} 33. Re6 {[%clk 0:03:50]}  Re7 {[%clk 0:05:37]} 34. Bh3 {[%clk 0:03:59]}  Rxe6 {[%clk 0:03:17]} 35. Bxe6 {[%clk 0:01:45]}  Qe7 {[%clk 0:03:33]} 36. Qe5 {[%clk 0:00:31]}  Qc5 {[%clk 0:03:30]} 37. Qe3 {[%clk 0:00:33]}  Qd6 {[%clk 0:01:05]} 38. Qd4 {[%clk 0:00:50]}  Ne8 {[%clk 0:01:14]} 39. Bf7 {[%clk 0:00:52]}  Qe7 {[%clk 0:00:54]} 40. Bxe8 {[%clk 0:00:48]}  Qxe8 {[%clk 0:01:16]} 41. d6 {[%clk 0:00:37]}  Qd7 {[%clk 0:26:28]} 42. Qc5 {[%clk 0:21:32]}  Qe6 {[%clk 0:23:42]} 43. h4 {[%clk 0:21:12]}  Qe1+ {[%clk 0:20:04]} 44. Kg2 {[%clk 0:21:18]}  Qe4+ {[%clk 0:12:27]} 45. Kh2 {[%clk 0:21:42]}  Qd3 {[%clk 0:07:35]} 46. Kg2 {[%clk 0:05:34]}  Qe4+ {[%clk 0:06:46]} 47. Kh2 {[%clk 0:05:59]}  Qd3 {[%clk 0:07:12]} 48. Qc6 {[%clk 0:03:15]}  b4 {[%clk 0:06:47]} 49. d7 {[%clk 0:02:49]}  c3 {[%clk 0:07:02]} 50. b3 {[%clk 0:02:16]}  c2 {[%clk 0:06:52]} 51. d8=Q {[%clk 0:02:34]}  Qxd8 {[%clk 0:07:14]} 52. Qxc2 {[%clk 0:02:59]}  h5 {[%clk 0:07:20]} 53. Qc4 {[%clk 0:03:00]}  Qd2 {[%clk 0:07:41]} 54. Kg2 {[%clk 0:03:23]}  Qc3 {[%clk 0:07:51]} 55. Qd5 {[%clk 0:03:08]}  Qe1 {[%clk 0:07:59]} 56. Qd4 {[%clk 0:03:05]}  Qc3 {[%clk 0:07:54]} 57. Qe3 {[%clk 0:03:27]}  Qc6+ {[%clk 0:07:56]} 58. Qf3 {[%clk 0:01:59]}  Qc3 {[%clk 0:08:12]} 59. Qd5 {[%clk 0:01:05]}  Qe1 {[%clk 0:08:36]} 60. Qc4 {[%clk 0:00:38]}  Qc3 {[%clk 0:09:00]} 61. Qe6 {[%clk 0:01:05]}  Qd4 {[%clk 0:08:39]} 62. Qc6 {[%clk 0:00:33]}  Qc3 {[%clk 0:09:04]} 63. Qd5 {[%clk 0:00:58]} 1/2-1/2


[Site "http://www.chessbomb.com"]

[Event "World Junior Chess Championship U20 2022"]
[White "Bettalli, Francesco"]
[Black "Horvath, Dominik"]
[WhiteFideId "2816453"]
[BlackFideId "1642561"]
[WhiteElo "2267"]
[BlackElo "2505"]
[Result "0-1"]
[Round "01"]
[TimeControl "5400+30"]
[Date "2022.10.12"]
[WhiteClock "0:01:58"]
[BlackClock "0:57:52"]

1. e4 {[%clk 1:30:46]}  e5 {[%clk 1:30:55]} 2. Nf3 {[%clk 1:31:10]}  Nc6 {[%clk 1:31:22]} 3. Bc4 {[%clk 1:31:25]}  Nf6 {[%clk 1:31:12]} 4. d4 {[%clk 1:31:49]}  exd4 {[%clk 1:31:20]} 5. e5 {[%clk 1:32:13]}  d5 {[%clk 1:31:44]} 6. Bb5 {[%clk 1:32:38]}  Nd7 {[%clk 1:31:36]} 7. Bxc6 {[%clk 1:17:54]}  bxc6 {[%clk 1:31:55]} 8. Nxd4 {[%clk 1:10:17]}  Nxe5 {[%clk 1:21:11]} 9. O-O {[%clk 1:06:31]}  c5 {[%clk 1:21:31]} 10. Qe2 {[%clk 0:47:14]}  Qe7 {[%clk 1:17:11]} 11. Nb3 {[%clk 0:33:21]}  Nc4 {[%clk 1:14:01]} 12. Qd1 {[%clk 0:31:44]}  Be6 {[%clk 1:14:12]} 13. Nc3 {[%clk 0:32:04]}  Qd7 {[%clk 1:12:29]} 14. f4 {[%clk 0:27:15]}  f5 {[%clk 1:10:44]} 15. Re1 {[%clk 0:25:45]}  Kf7 {[%clk 1:09:21]} 16. g4 {[%clk 0:17:06]}  Rd8 {[%clk 1:08:51]} 17. gxf5 {[%clk 0:15:57]}  Bxf5 {[%clk 1:09:17]} 18. Qe2 {[%clk 0:15:43]}  g6 {[%clk 1:04:34]} 19. Qf2 {[%clk 0:08:04]}  Qc6 {[%clk 1:04:06]} 20. Nb1 {[%clk 0:04:38]}  d4 {[%clk 1:04:17]} 21. N1d2 {[%clk 0:04:58]}  Qd5 {[%clk 1:01:21]} 22. Nf3 {[%clk 0:04:05]}  Bd6 {[%clk 1:00:08]} 23. Nbd2 {[%clk 0:03:08]}  Ne3 {[%clk 0:59:51]} 24. Ng5+ {[%clk 0:02:05]}  Kg7 {[%clk 1:00:02]} 25. c4 {[%clk 0:02:22]}  Qc6 {[%clk 0:58:20]} 26. Ndf3 {[%clk 0:01:58]}  Bxf4 {[%clk 0:57:52]} 0-1


[Site "http://www.chessbomb.com"]